Workbook

Sheet Sheet1
B2: Actual | E2: Override | H2: Use
B3: Northing (X) | C3: Easting (Y) | D3: Elevation (Z) | E3: Northing (X) | F3: Easting (Y) | G3: Elevation (Z) | H3: Northing (X) | I3: Easting (Y) | J3: Elevation (Z)
A4: Patio_East | B4: 3650070.872 | C4: 11982619.7 | D4: 0 | E4: 0 | F4: 0 | G4: 0 | H4: =IF(LEN(E4)>0,E4,B4) -> 0 | I4: =IF(LEN(F4)>0,F4,C4) -> 0 | J4: =IF(LEN(G4)>0,G4,D4) -> 0
A5: Patio_West | B5: 3650068.66 | C5: 11982598.22 | E5: =B7 -> 21.59061076 | F5: 0 | H5: =IF(LEN(E5)>0,E5,B5) -> 21.59061076 | I5: =IF(LEN(F5)>0,F5,C5) -> 0
A6: Delta: | B6: =B4-B5 -> 2.212 | C6: =C4-C5 -> 21.477
A7: Distance: | B7: =SQRT((ABS(C4-C5)^2)+(ABS(B4-B5)^2)) -> 21.59061076 | E7: =SQRT((ABS(F4-F5)^2)+(ABS(E4-E5)^2)) -> 21.59061076 | H7: =SQRT((ABS(I4-I5)^2)+(ABS(H4-H5)^2)) -> 21.59061076
A8: Bearing:
A10: PointName | B10: From | C10: DeltaX (ft) | D10: DeltaY (ft) | E10: DeltaZ (in) | F10: DeltaZ (ft) | G10: X (ft) | H10: Y (ft) | I10: Z (ft) | K10: Patio Point Elevation
A11: Patio_East | C11: =H4 -> 0 | D11: =I4 -> 0 | F11: =J4 -> 0 | G11: =C11 -> 0 | H11: =D11 -> 0 | I11: =F11 -> 0 | K11: =VLOOKUP(G11,Patio_Profile!$D$6:$G$17,3,FALSE) -> 0
A12: 0-1 | B12: =A11 -> Patio_East | C12: 0 | D12: 3 | E12: -15.5 | F12: =E12/12 -> -1.291666667 | G12: =VLOOKUP($B12,$A$11:$I1000,COLUMN(),FALSE)+C12 -> 0 | H12: =IF(RIGHT(A12,1)="0",D12,VLOOKUP($B12,$A$11:$I1000,COLUMN(),FALSE)+D12) -> 3 | I12: =IF(RIGHT(A12,1)="0",K12,VLOOKUP($B12,$A$11:$I1000,COLUMN(),FALSE)+F12) -> -1.291666667 | K12: =VLOOKUP(G12,Patio_Profile!$D$6:$G$17,3,FALSE) -> 0
A13: 0-2 | B13: =A12 -> 0-1 | C13: 0 | D13: 3 | E13: -14 | F13: =E13/12 -> -1.166666667 | G13: =VLOOKUP($B13,$A$11:$I1001,COLUMN(),FALSE)+C13 -> 0 | H13: =IF(RIGHT(A13,1)="0",D13,VLOOKUP($B13,$A$11:$I1001,COLUMN(),FALSE)+D13) -> 6 | I13: =IF(RIGHT(A13,1)="0",K13,VLOOKUP($B13,$A$11:$I1001,COLUMN(),FALSE)+F13) -> -2.458333333 | K13: =VLOOKUP(G13,Patio_Profile!$D$6:$G$17,3,FALSE) -> 0
A14: 0-3 | B14: 0-2 | C14: 0 | D14: 2 | E14: 2 | F14: 0.1666666667 | G14: =VLOOKUP($B14,$A$11:$I1002,COLUMN(),FALSE)+C14 -> 0 | H14: =IF(RIGHT(A14,1)="0",D14,VLOOKUP($B14,$A$11:$I1002,COLUMN(),FALSE)+D14) -> 8 | I14: =IF(RIGHT(A14,1)="0",K14,VLOOKUP($B14,$A$11:$I1002,COLUMN(),FALSE)+F14) -> -2.291666667 | K14: =VLOOKUP(G14,Patio_Profile!$D$6:$G$17,3,FALSE) -> 0
A15: 0-4 | B15: 0-3 | C15: 0 | D15: 2 | E15: 0 | F15: 0 | G15: =VLOOKUP($B15,$A$11:$I1003,COLUMN(),FALSE)+C15 -> 0 | H15: =IF(RIGHT(A15,1)="0",D15,VLOOKUP($B15,$A$11:$I1003,COLUMN(),FALSE)+D15) -> 10 | I15: =IF(RIGHT(A15,1)="0",K15,VLOOKUP($B15,$A$11:$I1003,COLUMN(),FALSE)+F15) -> -2.291666667 | K15: =VLOOKUP(G15,Patio_Profile!$D$6:$G$17,3,FALSE) -> 0
A16: 0-5 | B16: 0-4 | C16: 0 | D16: 2 | E16: 3.625 | F16: 0.3020833333 | G16: =VLOOKUP($B16,$A$11:$I1004,COLUMN(),FALSE)+C16 -> 0 | H16: =IF(RIGHT(A16,1)="0",D16,VLOOKUP($B16,$A$11:$I1004,COLUMN(),FALSE)+D16) -> 12 | I16: =IF(RIGHT(A16,1)="0",K16,VLOOKUP($B16,$A$11:$I1004,COLUMN(),FALSE)+F16) -> -1.989583333 | K16: =VLOOKUP(G16,Patio_Profile!$D$6:$G$17,3,FALSE) -> 0
A17: 0-6 | B17: 0-5 | C17: 0 | D17: 2 | E17: 5.125 | F17: 0.4270833333 | G17: =VLOOKUP($B17,$A$11:$I1005,COLUMN(),FALSE)+C17 -> 0 | H17: =IF(RIGHT(A17,1)="0",D17,VLOOKUP($B17,$A$11:$I1005,COLUMN(),FALSE)+D17) -> 14 | I17: =IF(RIGHT(A17,1)="0",K17,VLOOKUP($B17,$A$11:$I1005,COLUMN(),FALSE)+F17) -> -1.5625 | K17: =VLOOKUP(G17,Patio_Profile!$D$6:$G$17,3,FALSE) -> 0
A18: 0-7 | B18: 0-6 | C18: 0 | D18: 2 | E18: 6.75 | F18: 0.5625 | G18: =VLOOKUP($B18,$A$11:$I1006,COLUMN(),FALSE)+C18 -> 0 | H18: =IF(RIGHT(A18,1)="0",D18,VLOOKUP($B18,$A$11:$I1006,COLUMN(),FALSE)+D18) -> 16 | I18: =IF(RIGHT(A18,1)="0",K18,VLOOKUP($B18,$A$11:$I1006,COLUMN(),FALSE)+F18) -> -1 | K18: =VLOOKUP(G18,Patio_Profile!$D$6:$G$17,3,FALSE) -> 0
A19: 1-0 | B19: 0-7 | C19: 2.5 | D19: 2 | E19: 0 | F19: 0 | G19: =VLOOKUP($B19,$A$11:$I1007,COLUMN(),FALSE)+C19 -> 2.5 | H19: =IF(RIGHT(A19,1)="0",D19,VLOOKUP($B19,$A$11:$I1007,COLUMN(),FALSE)+D19) -> 2 | I19: =IF(RIGHT(A19,1)="0",K19,VLOOKUP($B19,$A$11:$I1007,COLUMN(),FALSE)+F19) -> -0.08333333333 | K19: =VLOOKUP(G19,Patio_Profile!$D$6:$G$17,3,FALSE) -> -0.08333333333
A20: 1-1 | B20: 1-0 | C20: 0 | D20: 2 | E20: -2 | F20: -0.1666666667 | G20: =VLOOKUP($B20,$A$11:$I1008,COLUMN(),FALSE)+C20 -> 2.5 | H20: =IF(RIGHT(A20,1)="0",D20,VLOOKUP($B20,$A$11:$I1008,COLUMN(),FALSE)+D20) -> 4 | I20: =IF(RIGHT(A20,1)="0",K20,VLOOKUP($B20,$A$11:$I1008,COLUMN(),FALSE)+F20) -> -0.25 | K20: =VLOOKUP(G20,Patio_Profile!$D$6:$G$17,3,FALSE) -> -0.08333333333
A21: 1-2 | B21: 1-1 | C21: 0 | D21: 2 | E21: -3 | F21: -0.25 | G21: =VLOOKUP($B21,$A$11:$I1009,COLUMN(),FALSE)+C21 -> 2.5 | H21: =IF(RIGHT(A21,1)="0",D21,VLOOKUP($B21,$A$11:$I1009,COLUMN(),FALSE)+D21) -> 6 | I21: =IF(RIGHT(A21,1)="0",K21,VLOOKUP($B21,$A$11:$I1009,COLUMN(),FALSE)+F21) -> -0.5 | K21: =VLOOKUP(G21,Patio_Profile!$D$6:$G$17,3,FALSE) -> -0.08333333333
A22: 1-3 | B22: 1-2 | C22: 0 | D22: 2 | E22: 0 | F22: 0 | G22: =VLOOKUP($B22,$A$11:$I1010,COLUMN(),FALSE)+C22 -> 2.5 | H22: =IF(RIGHT(A22,1)="0",D22,VLOOKUP($B22,$A$11:$I1010,COLUMN(),FALSE)+D22) -> 8 | I22: =IF(RIGHT(A22,1)="0",K22,VLOOKUP($B22,$A$11:$I1010,COLUMN(),FALSE)+F22) -> -0.5 | K22: =VLOOKUP(G22,Patio_Profile!$D$6:$G$17,3,FALSE) -> -0.08333333333
A23: 1-4 | B23: 1-3 | C23: 0 | D23: 2 | E23: 1.875 | F23: 0.15625 | G23: =VLOOKUP($B23,$A$11:$I1011,COLUMN(),FALSE)+C23 -> 2.5 | H23: =IF(RIGHT(A23,1)="0",D23,VLOOKUP($B23,$A$11:$I1011,COLUMN(),FALSE)+D23) -> 10 | I23: =IF(RIGHT(A23,1)="0",K23,VLOOKUP($B23,$A$11:$I1011,COLUMN(),FALSE)+F23) -> -0.34375 | K23: =VLOOKUP(G23,Patio_Profile!$D$6:$G$17,3,FALSE) -> -0.08333333333
A24: 1-5 | B24: 1-4 | C24: 0 | D24: 2 | E24: 3.875 | F24: 0.3229166667 | G24: =VLOOKUP($B24,$A$11:$I1012,COLUMN(),FALSE)+C24 -> 2.5 | H24: =IF(RIGHT(A24,1)="0",D24,VLOOKUP($B24,$A$11:$I1012,COLUMN(),FALSE)+D24) -> 12 | I24: =IF(RIGHT(A24,1)="0",K24,VLOOKUP($B24,$A$11:$I1012,COLUMN(),FALSE)+F24) -> -0.02083333333 | K24: =VLOOKUP(G24,Patio_Profile!$D$6:$G$17,3,FALSE) -> -0.08333333333
A25: 1-6 | B25: 1-5 | C25: 0 | D25: 2 | E25: 4.625 | F25: 0.3854166667 | G25: =VLOOKUP($B25,$A$11:$I1013,COLUMN(),FALSE)+C25 -> 2.5 | H25: =IF(RIGHT(A25,1)="0",D25,VLOOKUP($B25,$A$11:$I1013,COLUMN(),FALSE)+D25) -> 14 | I25: =IF(RIGHT(A25,1)="0",K25,VLOOKUP($B25,$A$11:$I1013,COLUMN(),FALSE)+F25) -> 0.3645833333 | K25: =VLOOKUP(G25,Patio_Profile!$D$6:$G$17,3,FALSE) -> -0.08333333333
A26: 1-7 | B26: 1-6 | C26: 0 | D26: 2 | E26: 5.25 | F26: 0.4375 | G26: =VLOOKUP($B26,$A$11:$I1014,COLUMN(),FALSE)+C26 -> 2.5 | H26: =IF(RIGHT(A26,1)="0",D26,VLOOKUP($B26,$A$11:$I1014,COLUMN(),FALSE)+D26) -> 16 | I26: =IF(RIGHT(A26,1)="0",K26,VLOOKUP($B26,$A$11:$I1014,COLUMN(),FALSE)+F26) -> 0.8020833333 | K26: =VLOOKUP(G26,Patio_Profile!$D$6:$G$17,3,FALSE) -> -0.08333333333
A27: 2-0 | B27: 1-7 | C27: 2.5 | D27: 2 | E27: 0 | F27: 0 | G27: =VLOOKUP($B27,$A$11:$I1015,COLUMN(),FALSE)+C27 -> 5 | H27: =IF(RIGHT(A27,1)="0",D27,VLOOKUP($B27,$A$11:$I1015,COLUMN(),FALSE)+D27) -> 2 | I27: =IF(RIGHT(A27,1)="0",K27,VLOOKUP($B27,$A$11:$I1015,COLUMN(),FALSE)+F27) -> -0.28125 | K27: =VLOOKUP(G27,Patio_Profile!$D$6:$G$17,3,FALSE) -> -0.28125
A28: 2-1 | B28: 2-0 | C28: 0 | D28: 2 | E28: -1.5 | F28: -0.125 | G28: =VLOOKUP($B28,$A$11:$I1016,COLUMN(),FALSE)+C28 -> 5 | H28: =IF(RIGHT(A28,1)="0",D28,VLOOKUP($B28,$A$11:$I1016,COLUMN(),FALSE)+D28) -> 4 | I28: =IF(RIGHT(A28,1)="0",K28,VLOOKUP($B28,$A$11:$I1016,COLUMN(),FALSE)+F28) -> -0.40625 | K28: =VLOOKUP(G28,Patio_Profile!$D$6:$G$17,3,FALSE) -> -0.28125
A29: 2-2 | B29: 2-1 | C29: 0 | D29: 2 | E29: -2.5 | F29: -0.2083333333 | G29: =VLOOKUP($B29,$A$11:$I1017,COLUMN(),FALSE)+C29 -> 5 | H29: =IF(RIGHT(A29,1)="0",D29,VLOOKUP($B29,$A$11:$I1017,COLUMN(),FALSE)+D29) -> 6 | I29: =IF(RIGHT(A29,1)="0",K29,VLOOKUP($B29,$A$11:$I1017,COLUMN(),FALSE)+F29) -> -0.6145833333 | K29: =VLOOKUP(G29,Patio_Profile!$D$6:$G$17,3,FALSE) -> -0.28125
A30: 2-3 | B30: 2-2 | C30: 0 | D30: 2 | E30: -0.25 | F30: -0.02083333333 | G30: =VLOOKUP($B30,$A$11:$I1018,COLUMN(),FALSE)+C30 -> 5 | H30: =IF(RIGHT(A30,1)="0",D30,VLOOKUP($B30,$A$11:$I1018,COLUMN(),FALSE)+D30) -> 8 | I30: =IF(RIGHT(A30,1)="0",K30,VLOOKUP($B30,$A$11:$I1018,COLUMN(),FALSE)+F30) -> -0.6354166667 | K30: =VLOOKUP(G30,Patio_Profile!$D$6:$G$17,3,FALSE) -> -0.28125
A31: 2-4 | B31: 2-3 | C31: 0 | D31: 2 | E31: 2.25 | F31: 0.1875 | G31: =VLOOKUP($B31,$A$11:$I1019,COLUMN(),FALSE)+C31 -> 5 | H31: =IF(RIGHT(A31,1)="0",D31,VLOOKUP($B31,$A$11:$I1019,COLUMN(),FALSE)+D31) -> 10 | I31: =IF(RIGHT(A31,1)="0",K31,VLOOKUP($B31,$A$11:$I1019,COLUMN(),FALSE)+F31) -> -0.4479166667 | K31: =VLOOKUP(G31,Patio_Profile!$D$6:$G$17,3,FALSE) -> -0.28125
A32: 2-5 | B32: 2-4 | C32: 0 | D32: 2 | E32: 4 | F32: 0.3333333333 | G32: =VLOOKUP($B32,$A$11:$I1020,COLUMN(),FALSE)+C32 -> 5 | H32: =IF(RIGHT(A32,1)="0",D32,VLOOKUP($B32,$A$11:$I1020,COLUMN(),FALSE)+D32) -> 12 | I32: =IF(RIGHT(A32,1)="0",K32,VLOOKUP($B32,$A$11:$I1020,COLUMN(),FALSE)+F32) -> -0.1145833333 | K32: =VLOOKUP(G32,Patio_Profile!$D$6:$G$17,3,FALSE) -> -0.28125
A33: 2-6 | B33: 2-5 | C33: 0 | D33: 2 | E33: 4.75 | F33: 0.3958333333 | G33: =VLOOKUP($B33,$A$11:$I1021,COLUMN(),FALSE)+C33 -> 5 | H33: =IF(RIGHT(A33,1)="0",D33,VLOOKUP($B33,$A$11:$I1021,COLUMN(),FALSE)+D33) -> 14 | I33: =IF(RIGHT(A33,1)="0",K33,VLOOKUP($B33,$A$11:$I1021,COLUMN(),FALSE)+F33) -> 0.28125 | K33: =VLOOKUP(G33,Patio_Profile!$D$6:$G$17,3,FALSE) -> -0.28125
A34: 2-7 | B34: 2-6 | C34: 0 | D34: 2 | E34: 5.125 | F34: 0.4270833333 | G34: =VLOOKUP($B34,$A$11:$I1022,COLUMN(),FALSE)+C34 -> 5 | H34: =IF(RIGHT(A34,1)="0",D34,VLOOKUP($B34,$A$11:$I1022,COLUMN(),FALSE)+D34) -> 16 | I34: =IF(RIGHT(A34,1)="0",K34,VLOOKUP($B34,$A$11:$I1022,COLUMN(),FALSE)+F34) -> 0.7083333333 | K34: =VLOOKUP(G34,Patio_Profile!$D$6:$G$17,3,FALSE) -> -0.28125
A35: 3-0 | B35: 2-7 | C35: 2.5 | D35: 2 | E35: 0 | F35: 0 | G35: =VLOOKUP($B35,$A$11:$I1023,COLUMN(),FALSE)+C35 -> 7.5 | H35: =IF(RIGHT(A35,1)="0",D35,VLOOKUP($B35,$A$11:$I1023,COLUMN(),FALSE)+D35) -> 2 | I35: =IF(RIGHT(A35,1)="0",K35,VLOOKUP($B35,$A$11:$I1023,COLUMN(),FALSE)+F35) -> -0.6666666667 | K35: =VLOOKUP(G35,Patio_Profile!$D$6:$G$17,3,FALSE) -> -0.6666666667
A36: 3-1 | B36: 3-0 | C36: 0 | D36: 2 | E36: -1.75 | F36: -0.1458333333 | G36: =VLOOKUP($B36,$A$11:$I1024,COLUMN(),FALSE)+C36 -> 7.5 | H36: =IF(RIGHT(A36,1)="0",D36,VLOOKUP($B36,$A$11:$I1024,COLUMN(),FALSE)+D36) -> 4 | I36: =IF(RIGHT(A36,1)="0",K36,VLOOKUP($B36,$A$11:$I1024,COLUMN(),FALSE)+F36) -> -0.8125 | K36: =VLOOKUP(G36,Patio_Profile!$D$6:$G$17,3,FALSE) -> -0.6666666667
A37: 3-2 | B37: 3-1 | C37: 0 | D37: 2 | E37: -2.25 | F37: -0.1875 | G37: =VLOOKUP($B37,$A$11:$I1025,COLUMN(),FALSE)+C37 -> 7.5 | H37: =IF(RIGHT(A37,1)="0",D37,VLOOKUP($B37,$A$11:$I1025,COLUMN(),FALSE)+D37) -> 6 | I37: =IF(RIGHT(A37,1)="0",K37,VLOOKUP($B37,$A$11:$I1025,COLUMN(),FALSE)+F37) -> -1 | K37: =VLOOKUP(G37,Patio_Profile!$D$6:$G$17,3,FALSE) -> -0.6666666667
A38: 3-3 | B38: 3-2 | C38: 0 | D38: 2 | E38: -0.5 | F38: -0.04166666667 | G38: =VLOOKUP($B38,$A$11:$I1026,COLUMN(),FALSE)+C38 -> 7.5 | H38: =IF(RIGHT(A38,1)="0",D38,VLOOKUP($B38,$A$11:$I1026,COLUMN(),FALSE)+D38) -> 8 | I38: =IF(RIGHT(A38,1)="0",K38,VLOOKUP($B38,$A$11:$I1026,COLUMN(),FALSE)+F38) -> -1.041666667 | K38: =VLOOKUP(G38,Patio_Profile!$D$6:$G$17,3,FALSE) -> -0.6666666667
A39: 3-4 | B39: 3-3 | C39: 0 | D39: 2 | E39: 0.5 | F39: 0.04166666667 | G39: =VLOOKUP($B39,$A$11:$I1027,COLUMN(),FALSE)+C39 -> 7.5 | H39: =IF(RIGHT(A39,1)="0",D39,VLOOKUP($B39,$A$11:$I1027,COLUMN(),FALSE)+D39) -> 10 | I39: =IF(RIGHT(A39,1)="0",K39,VLOOKUP($B39,$A$11:$I1027,COLUMN(),FALSE)+F39) -> -1 | K39: =VLOOKUP(G39,Patio_Profile!$D$6:$G$17,3,FALSE) -> -0.6666666667
A40: 3-5 | B40: 3-4 | C40: 0 | D40: 2 | E40: 4.125 | F40: 0.34375 | G40: =VLOOKUP($B40,$A$11:$I1028,COLUMN(),FALSE)+C40 -> 7.5 | H40: =IF(RIGHT(A40,1)="0",D40,VLOOKUP($B40,$A$11:$I1028,COLUMN(),FALSE)+D40) -> 12 | I40: =IF(RIGHT(A40,1)="0",K40,VLOOKUP($B40,$A$11:$I1028,COLUMN(),FALSE)+F40) -> -0.65625 | K40: =VLOOKUP(G40,Patio_Profile!$D$6:$G$17,3,FALSE) -> -0.6666666667
A41: 3-6 | B41: 3-5 | C41: 0 | D41: 2 | E41: 4.5 | F41: 0.375 | G41: =VLOOKUP($B41,$A$11:$I1029,COLUMN(),FALSE)+C41 -> 7.5 | H41: =IF(RIGHT(A41,1)="0",D41,VLOOKUP($B41,$A$11:$I1029,COLUMN(),FALSE)+D41) -> 14 | I41: =IF(RIGHT(A41,1)="0",K41,VLOOKUP($B41,$A$11:$I1029,COLUMN(),FALSE)+F41) -> -0.28125 | K41: =VLOOKUP(G41,Patio_Profile!$D$6:$G$17,3,FALSE) -> -0.6666666667
A42: 3-7 | B42: 3-6 | C42: 0 | D42: 2 | E42: 3.875 | F42: 0.3229166667 | G42: =VLOOKUP($B42,$A$11:$I1030,COLUMN(),FALSE)+C42 -> 7.5 | H42: =IF(RIGHT(A42,1)="0",D42,VLOOKUP($B42,$A$11:$I1030,COLUMN(),FALSE)+D42) -> 16 | I42: =IF(RIGHT(A42,1)="0",K42,VLOOKUP($B42,$A$11:$I1030,COLUMN(),FALSE)+F42) -> 0.04166666667 | K42: =VLOOKUP(G42,Patio_Profile!$D$6:$G$17,3,FALSE) -> -0.6666666667
A43: 4-0 | B43: 3-7 | C43: 2.5 | D43: 2 | E43: 0 | F43: 0 | G43: =VLOOKUP($B43,$A$11:$I1031,COLUMN(),FALSE)+C43 -> 10 | H43: =IF(RIGHT(A43,1)="0",D43,VLOOKUP($B43,$A$11:$I1031,COLUMN(),FALSE)+D43) -> 2 | I43: =IF(RIGHT(A43,1)="0",K43,VLOOKUP($B43,$A$11:$I1031,COLUMN(),FALSE)+F43) -> -1.166666667 | K43: =VLOOKUP(G43,Patio_Profile!$D$6:$G$17,3,FALSE) -> -1.166666667
A44: 4-1 | B44: 4-0 | C44: 0 | D44: 2 | E44: -2.5 | F44: -0.2083333333 | G44: =VLOOKUP($B44,$A$11:$I1032,COLUMN(),FALSE)+C44 -> 10 | H44: =IF(RIGHT(A44,1)="0",D44,VLOOKUP($B44,$A$11:$I1032,COLUMN(),FALSE)+D44) -> 4 | I44: =IF(RIGHT(A44,1)="0",K44,VLOOKUP($B44,$A$11:$I1032,COLUMN(),FALSE)+F44) -> -1.375 | K44: =VLOOKUP(G44,Patio_Profile!$D$6:$G$17,3,FALSE) -> -1.166666667
A45: 4-2 | B45: 4-1 | C45: 0 | D45: 2 | E45: -1.5 | F45: -0.125 | G45: =VLOOKUP($B45,$A$11:$I1033,COLUMN(),FALSE)+C45 -> 10 | H45: =IF(RIGHT(A45,1)="0",D45,VLOOKUP($B45,$A$11:$I1033,COLUMN(),FALSE)+D45) -> 6 | I45: =IF(RIGHT(A45,1)="0",K45,VLOOKUP($B45,$A$11:$I1033,COLUMN(),FALSE)+F45) -> -1.5 | K45: =VLOOKUP(G45,Patio_Profile!$D$6:$G$17,3,FALSE) -> -1.166666667
A46: 4-3 | B46: 4-2 | C46: 0 | D46: 2 | E46: 0.25 | F46: 0.02083333333 | G46: =VLOOKUP($B46,$A$11:$I1034,COLUMN(),FALSE)+C46 -> 10 | H46: =IF(RIGHT(A46,1)="0",D46,VLOOKUP($B46,$A$11:$I1034,COLUMN(),FALSE)+D46) -> 8 | I46: =IF(RIGHT(A46,1)="0",K46,VLOOKUP($B46,$A$11:$I1034,COLUMN(),FALSE)+F46) -> -1.479166667 | K46: =VLOOKUP(G46,Patio_Profile!$D$6:$G$17,3,FALSE) -> -1.166666667
A47: 4-4 | B47: 4-3 | C47: 0 | D47: 2 | E47: -1 | F47: -0.08333333333 | G47: =VLOOKUP($B47,$A$11:$I1035,COLUMN(),FALSE)+C47 -> 10 | H47: =IF(RIGHT(A47,1)="0",D47,VLOOKUP($B47,$A$11:$I1035,COLUMN(),FALSE)+D47) -> 10 | I47: =IF(RIGHT(A47,1)="0",K47,VLOOKUP($B47,$A$11:$I1035,COLUMN(),FALSE)+F47) -> -1.5625 | K47: =VLOOKUP(G47,Patio_Profile!$D$6:$G$17,3,FALSE) -> -1.166666667
A48: 4-5 | B48: 4-4 | C48: 0 | D48: 2 | E48: 3.25 | F48: 0.2708333333 | G48: =VLOOKUP($B48,$A$11:$I1036,COLUMN(),FALSE)+C48 -> 10 | H48: =IF(RIGHT(A48,1)="0",D48,VLOOKUP($B48,$A$11:$I1036,COLUMN(),FALSE)+D48) -> 12 | I48: =IF(RIGHT(A48,1)="0",K48,VLOOKUP($B48,$A$11:$I1036,COLUMN(),FALSE)+F48) -> -1.291666667 | K48: =VLOOKUP(G48,Patio_Profile!$D$6:$G$17,3,FALSE) -> -1.166666667
A49: 4-6 | B49: 4-5 | C49: 0 | D49: 2 | E49: 5.125 | F49: 0.4270833333 | G49: =VLOOKUP($B49,$A$11:$I1037,COLUMN(),FALSE)+C49 -> 10 | H49: =IF(RIGHT(A49,1)="0",D49,VLOOKUP($B49,$A$11:$I1037,COLUMN(),FALSE)+D49) -> 14 | I49: =IF(RIGHT(A49,1)="0",K49,VLOOKUP($B49,$A$11:$I1037,COLUMN(),FALSE)+F49) -> -0.8645833333 | K49: =VLOOKUP(G49,Patio_Profile!$D$6:$G$17,3,FALSE) -> -1.166666667
A50: 4-7 | B50: 4-6 | C50: 0 | D50: 2 | E50: 3.875 | F50: 0.3229166667 | G50: =VLOOKUP($B50,$A$11:$I1038,COLUMN(),FALSE)+C50 -> 10 | H50: =IF(RIGHT(A50,1)="0",D50,VLOOKUP($B50,$A$11:$I1038,COLUMN(),FALSE)+D50) -> 16 | I50: =IF(RIGHT(A50,1)="0",K50,VLOOKUP($B50,$A$11:$I1038,COLUMN(),FALSE)+F50) -> -0.5416666667 | K50: =VLOOKUP(G50,Patio_Profile!$D$6:$G$17,3,FALSE) -> -1.166666667
A51: 5-0 | B51: 4-7 | C51: 2.5 | D51: 2 | E51: 0 | F51: 0 | G51: =VLOOKUP($B51,$A$11:$I1039,COLUMN(),FALSE)+C51 -> 12.5 | H51: =IF(RIGHT(A51,1)="0",D51,VLOOKUP($B51,$A$11:$I1039,COLUMN(),FALSE)+D51) -> 2 | I51: =IF(RIGHT(A51,1)="0",K51,VLOOKUP($B51,$A$11:$I1039,COLUMN(),FALSE)+F51) -> -1.666666667 | K51: =VLOOKUP(G51,Patio_Profile!$D$6:$G$17,3,FALSE) -> -1.666666667
A52: 5-1 | B52: 5-0 | C52: 0 | D52: 2 | E52: -4.5 | F52: -0.375 | G52: =VLOOKUP($B52,$A$11:$I1040,COLUMN(),FALSE)+C52 -> 12.5 | H52: =IF(RIGHT(A52,1)="0",D52,VLOOKUP($B52,$A$11:$I1040,COLUMN(),FALSE)+D52) -> 4 | I52: =IF(RIGHT(A52,1)="0",K52,VLOOKUP($B52,$A$11:$I1040,COLUMN(),FALSE)+F52) -> -2.041666667 | K52: =VLOOKUP(G52,Patio_Profile!$D$6:$G$17,3,FALSE) -> -1.666666667
A53: 5-2 | B53: 5-1 | C53: 0 | D53: 2 | E53: -2.25 | F53: -0.1875 | G53: =VLOOKUP($B53,$A$11:$I1041,COLUMN(),FALSE)+C53 -> 12.5 | H53: =IF(RIGHT(A53,1)="0",D53,VLOOKUP($B53,$A$11:$I1041,COLUMN(),FALSE)+D53) -> 6 | I53: =IF(RIGHT(A53,1)="0",K53,VLOOKUP($B53,$A$11:$I1041,COLUMN(),FALSE)+F53) -> -2.229166667 | K53: =VLOOKUP(G53,Patio_Profile!$D$6:$G$17,3,FALSE) -> -1.666666667
A54: 5-3 | B54: 5-2 | C54: 0 | D54: 2 | E54: -1 | F54: -0.08333333333 | G54: =VLOOKUP($B54,$A$11:$I1042,COLUMN(),FALSE)+C54 -> 12.5 | H54: =IF(RIGHT(A54,1)="0",D54,VLOOKUP($B54,$A$11:$I1042,COLUMN(),FALSE)+D54) -> 8 | I54: =IF(RIGHT(A54,1)="0",K54,VLOOKUP($B54,$A$11:$I1042,COLUMN(),FALSE)+F54) -> -2.3125 | K54: =VLOOKUP(G54,Patio_Profile!$D$6:$G$17,3,FALSE) -> -1.666666667
A55: 5-4 | B55: 5-3 | C55: 0 | D55: 2 | E55: 1.25 | F55: 0.1041666667 | G55: =VLOOKUP($B55,$A$11:$I1043,COLUMN(),FALSE)+C55 -> 12.5 | H55: =IF(RIGHT(A55,1)="0",D55,VLOOKUP($B55,$A$11:$I1043,COLUMN(),FALSE)+D55) -> 10 | I55: =IF(RIGHT(A55,1)="0",K55,VLOOKUP($B55,$A$11:$I1043,COLUMN(),FALSE)+F55) -> -2.208333333 | K55: =VLOOKUP(G55,Patio_Profile!$D$6:$G$17,3,FALSE) -> -1.666666667
A56: 5-5 | B56: 5-4 | C56: 0 | D56: 2 | E56: 4.5 | F56: 0.375 | G56: =VLOOKUP($B56,$A$11:$I1044,COLUMN(),FALSE)+C56 -> 12.5 | H56: =IF(RIGHT(A56,1)="0",D56,VLOOKUP($B56,$A$11:$I1044,COLUMN(),FALSE)+D56) -> 12 | I56: =IF(RIGHT(A56,1)="0",K56,VLOOKUP($B56,$A$11:$I1044,COLUMN(),FALSE)+F56) -> -1.833333333 | K56: =VLOOKUP(G56,Patio_Profile!$D$6:$G$17,3,FALSE) -> -1.666666667
A57: 5-6 | B57: 5-5 | C57: 0 | D57: 2 | E57: 5.25 | F57: 0.4375 | G57: =VLOOKUP($B57,$A$11:$I1045,COLUMN(),FALSE)+C57 -> 12.5 | H57: =IF(RIGHT(A57,1)="0",D57,VLOOKUP($B57,$A$11:$I1045,COLUMN(),FALSE)+D57) -> 14 | I57: =IF(RIGHT(A57,1)="0",K57,VLOOKUP($B57,$A$11:$I1045,COLUMN(),FALSE)+F57) -> -1.395833333 | K57: =VLOOKUP(G57,Patio_Profile!$D$6:$G$17,3,FALSE) -> -1.666666667
A58: 5-7 | B58: 5-6 | C58: 0 | D58: 2 | E58: 4.25 | F58: 0.3541666667 | G58: =VLOOKUP($B58,$A$11:$I1046,COLUMN(),FALSE)+C58 -> 12.5 | H58: =IF(RIGHT(A58,1)="0",D58,VLOOKUP($B58,$A$11:$I1046,COLUMN(),FALSE)+D58) -> 16 | I58: =IF(RIGHT(A58,1)="0",K58,VLOOKUP($B58,$A$11:$I1046,COLUMN(),FALSE)+F58) -> -1.041666667 | K58: =VLOOKUP(G58,Patio_Profile!$D$6:$G$17,3,FALSE) -> -1.666666667
A59: 6-0 | B59: 5-7 | C59: 2.5 | D59: 2 | E59: 0 | F59: 0 | G59: =VLOOKUP($B59,$A$11:$I1047,COLUMN(),FALSE)+C59 -> 15 | H59: =IF(RIGHT(A59,1)="0",D59,VLOOKUP($B59,$A$11:$I1047,COLUMN(),FALSE)+D59) -> 2 | I59: =IF(RIGHT(A59,1)="0",K59,VLOOKUP($B59,$A$11:$I1047,COLUMN(),FALSE)+F59) -> -1.854166667 | K59: =VLOOKUP(G59,Patio_Profile!$D$6:$G$17,3,FALSE) -> -1.854166667
A60: 6-1 | B60: 6-0 | C60: 0 | D60: 2 | E60: -3.5 | F60: -0.2916666667 | G60: =VLOOKUP($B60,$A$11:$I1048,COLUMN(),FALSE)+C60 -> 15 | H60: =IF(RIGHT(A60,1)="0",D60,VLOOKUP($B60,$A$11:$I1048,COLUMN(),FALSE)+D60) -> 4 | I60: =IF(RIGHT(A60,1)="0",K60,VLOOKUP($B60,$A$11:$I1048,COLUMN(),FALSE)+F60) -> -2.145833333 | K60: =VLOOKUP(G60,Patio_Profile!$D$6:$G$17,3,FALSE) -> -1.854166667
A61: 6-2 | B61: 6-1 | C61: 0 | D61: 2 | E61: -2 | F61: -0.1666666667 | G61: =VLOOKUP($B61,$A$11:$I1049,COLUMN(),FALSE)+C61 -> 15 | H61: =IF(RIGHT(A61,1)="0",D61,VLOOKUP($B61,$A$11:$I1049,COLUMN(),FALSE)+D61) -> 6 | I61: =IF(RIGHT(A61,1)="0",K61,VLOOKUP($B61,$A$11:$I1049,COLUMN(),FALSE)+F61) -> -2.3125 | K61: =VLOOKUP(G61,Patio_Profile!$D$6:$G$17,3,FALSE) -> -1.854166667
A62: 6-3 | B62: 6-2 | C62: 0 | D62: 2 | E62: -0.5 | F62: -0.04166666667 | G62: =VLOOKUP($B62,$A$11:$I1050,COLUMN(),FALSE)+C62 -> 15 | H62: =IF(RIGHT(A62,1)="0",D62,VLOOKUP($B62,$A$11:$I1050,COLUMN(),FALSE)+D62) -> 8 | I62: =IF(RIGHT(A62,1)="0",K62,VLOOKUP($B62,$A$11:$I1050,COLUMN(),FALSE)+F62) -> -2.354166667 | K62: =VLOOKUP(G62,Patio_Profile!$D$6:$G$17,3,FALSE) -> -1.854166667
A63: 6-4 | B63: 6-3 | C63: 0 | D63: 2 | E63: 0 | F63: 0 | G63: =VLOOKUP($B63,$A$11:$I1051,COLUMN(),FALSE)+C63 -> 15 | H63: =IF(RIGHT(A63,1)="0",D63,VLOOKUP($B63,$A$11:$I1051,COLUMN(),FALSE)+D63) -> 10 | I63: =IF(RIGHT(A63,1)="0",K63,VLOOKUP($B63,$A$11:$I1051,COLUMN(),FALSE)+F63) -> -2.354166667 | K63: =VLOOKUP(G63,Patio_Profile!$D$6:$G$17,3,FALSE) -> -1.854166667
A64: 6-5 | B64: 6-4 | C64: 0 | D64: 2 | E64: 3.875 | F64: 0.3229166667 | G64: =VLOOKUP($B64,$A$11:$I1052,COLUMN(),FALSE)+C64 -> 15 | H64: =IF(RIGHT(A64,1)="0",D64,VLOOKUP($B64,$A$11:$I1052,COLUMN(),FALSE)+D64) -> 12 | I64: =IF(RIGHT(A64,1)="0",K64,VLOOKUP($B64,$A$11:$I1052,COLUMN(),FALSE)+F64) -> -2.03125 | K64: =VLOOKUP(G64,Patio_Profile!$D$6:$G$17,3,FALSE) -> -1.854166667
A65: 6-6 | B65: 6-5 | C65: 0 | D65: 2 | E65: 5.375 | F65: 0.4479166667 | G65: =VLOOKUP($B65,$A$11:$I1053,COLUMN(),FALSE)+C65 -> 15 | H65: =IF(RIGHT(A65,1)="0",D65,VLOOKUP($B65,$A$11:$I1053,COLUMN(),FALSE)+D65) -> 14 | I65: =IF(RIGHT(A65,1)="0",K65,VLOOKUP($B65,$A$11:$I1053,COLUMN(),FALSE)+F65) -> -1.583333333 | K65: =VLOOKUP(G65,Patio_Profile!$D$6:$G$17,3,FALSE) -> -1.854166667
A66: 6-7 | B66: 6-6 | C66: 0 | D66: 2 | E66: 3.875 | F66: 0.3229166667 | G66: =VLOOKUP($B66,$A$11:$I1054,COLUMN(),FALSE)+C66 -> 15 | H66: =IF(RIGHT(A66,1)="0",D66,VLOOKUP($B66,$A$11:$I1054,COLUMN(),FALSE)+D66) -> 16 | I66: =IF(RIGHT(A66,1)="0",K66,VLOOKUP($B66,$A$11:$I1054,COLUMN(),FALSE)+F66) -> -1.260416667 | K66: =VLOOKUP(G66,Patio_Profile!$D$6:$G$17,3,FALSE) -> -1.854166667
A67: 7-0 | B67: 6-7 | C67: 2.5 | D67: 2 | E67: 0 | F67: 0 | G67: =VLOOKUP($B67,$A$11:$I1055,COLUMN(),FALSE)+C67 -> 17.5 | H67: =IF(RIGHT(A67,1)="0",D67,VLOOKUP($B67,$A$11:$I1055,COLUMN(),FALSE)+D67) -> 2 | I67: =IF(RIGHT(A67,1)="0",K67,VLOOKUP($B67,$A$11:$I1055,COLUMN(),FALSE)+F67) -> -2.125 | K67: =VLOOKUP(G67,Patio_Profile!$D$6:$G$17,3,FALSE) -> -2.125
A68: 7-1 | B68: 7-0 | C68: 0 | D68: 2 | E68: -3.25 | F68: -0.2708333333 | G68: =VLOOKUP($B68,$A$11:$I1056,COLUMN(),FALSE)+C68 -> 17.5 | H68: =IF(RIGHT(A68,1)="0",D68,VLOOKUP($B68,$A$11:$I1056,COLUMN(),FALSE)+D68) -> 4 | I68: =IF(RIGHT(A68,1)="0",K68,VLOOKUP($B68,$A$11:$I1056,COLUMN(),FALSE)+F68) -> -2.395833333 | K68: =VLOOKUP(G68,Patio_Profile!$D$6:$G$17,3,FALSE) -> -2.125
A69: 7-2 | B69: 7-1 | C69: 0 | D69: 2 | E69: -3 | F69: -0.25 | G69: =VLOOKUP($B69,$A$11:$I1057,COLUMN(),FALSE)+C69 -> 17.5 | H69: =IF(RIGHT(A69,1)="0",D69,VLOOKUP($B69,$A$11:$I1057,COLUMN(),FALSE)+D69) -> 6 | I69: =IF(RIGHT(A69,1)="0",K69,VLOOKUP($B69,$A$11:$I1057,COLUMN(),FALSE)+F69) -> -2.645833333 | K69: =VLOOKUP(G69,Patio_Profile!$D$6:$G$17,3,FALSE) -> -2.125
A70: 7-3 | B70: 7-2 | C70: 0 | D70: 2 | E70: -0.25 | F70: -0.02083333333 | G70: =VLOOKUP($B70,$A$11:$I1058,COLUMN(),FALSE)+C70 -> 17.5 | H70: =IF(RIGHT(A70,1)="0",D70,VLOOKUP($B70,$A$11:$I1058,COLUMN(),FALSE)+D70) -> 8 | I70: =IF(RIGHT(A70,1)="0",K70,VLOOKUP($B70,$A$11:$I1058,COLUMN(),FALSE)+F70) -> -2.666666667 | K70: =VLOOKUP(G70,Patio_Profile!$D$6:$G$17,3,FALSE) -> -2.125
A71: 7-4 | B71: 7-3 | C71: 0 | D71: 2 | E71: 1.25 | F71: 0.1041666667 | G71: =VLOOKUP($B71,$A$11:$I1059,COLUMN(),FALSE)+C71 -> 17.5 | H71: =IF(RIGHT(A71,1)="0",D71,VLOOKUP($B71,$A$11:$I1059,COLUMN(),FALSE)+D71) -> 10 | I71: =IF(RIGHT(A71,1)="0",K71,VLOOKUP($B71,$A$11:$I1059,COLUMN(),FALSE)+F71) -> -2.5625 | K71: =VLOOKUP(G71,Patio_Profile!$D$6:$G$17,3,FALSE) -> -2.125
A72: 7-5 | B72: 7-4 | C72: 0 | D72: 2 | E72: 4.625 | F72: 0.3854166667 | G72: =VLOOKUP($B72,$A$11:$I1060,COLUMN(),FALSE)+C72 -> 17.5 | H72: =IF(RIGHT(A72,1)="0",D72,VLOOKUP($B72,$A$11:$I1060,COLUMN(),FALSE)+D72) -> 12 | I72: =IF(RIGHT(A72,1)="0",K72,VLOOKUP($B72,$A$11:$I1060,COLUMN(),FALSE)+F72) -> -2.177083333 | K72: =VLOOKUP(G72,Patio_Profile!$D$6:$G$17,3,FALSE) -> -2.125
A73: 7-6 | B73: 7-5 | C73: 0 | D73: 2 | E73: 5.125 | F73: 0.4270833333 | G73: =VLOOKUP($B73,$A$11:$I1061,COLUMN(),FALSE)+C73 -> 17.5 | H73: =IF(RIGHT(A73,1)="0",D73,VLOOKUP($B73,$A$11:$I1061,COLUMN(),FALSE)+D73) -> 14 | I73: =IF(RIGHT(A73,1)="0",K73,VLOOKUP($B73,$A$11:$I1061,COLUMN(),FALSE)+F73) -> -1.75 | K73: =VLOOKUP(G73,Patio_Profile!$D$6:$G$17,3,FALSE) -> -2.125
A74: 7-7 | B74: 7-6 | C74: 0 | D74: 2 | E74: 3.875 | F74: 0.3229166667 | G74: =VLOOKUP($B74,$A$11:$I1062,COLUMN(),FALSE)+C74 -> 17.5 | H74: =IF(RIGHT(A74,1)="0",D74,VLOOKUP($B74,$A$11:$I1062,COLUMN(),FALSE)+D74) -> 16 | I74: =IF(RIGHT(A74,1)="0",K74,VLOOKUP($B74,$A$11:$I1062,COLUMN(),FALSE)+F74) -> -1.427083333 | K74: =VLOOKUP(G74,Patio_Profile!$D$6:$G$17,3,FALSE) -> -2.125
A75: 8-0 | B75: 7-7 | C75: 2.5 | D75: 2 | E75: 0 | F75: 0 | G75: =VLOOKUP($B75,$A$11:$I1063,COLUMN(),FALSE)+C75 -> 20 | H75: =IF(RIGHT(A75,1)="0",D75,VLOOKUP($B75,$A$11:$I1063,COLUMN(),FALSE)+D75) -> 2 | I75: =IF(RIGHT(A75,1)="0",K75,VLOOKUP($B75,$A$11:$I1063,COLUMN(),FALSE)+F75) -> -2.541666667 | K75: =VLOOKUP(G75,Patio_Profile!$D$6:$G$17,3,FALSE) -> -2.541666667
A76: 8-1 | B76: 8-0 | C76: 0 | D76: 2 | E76: -5.75 | F76: -0.4791666667 | G76: =VLOOKUP($B76,$A$11:$I1064,COLUMN(),FALSE)+C76 -> 20 | H76: =IF(RIGHT(A76,1)="0",D76,VLOOKUP($B76,$A$11:$I1064,COLUMN(),FALSE)+D76) -> 4 | I76: =IF(RIGHT(A76,1)="0",K76,VLOOKUP($B76,$A$11:$I1064,COLUMN(),FALSE)+F76) -> -3.020833333 | K76: =VLOOKUP(G76,Patio_Profile!$D$6:$G$17,3,FALSE) -> -2.541666667
A77: 8-2 | B77: =A76 -> 8-1 | C77: 0 | D77: 2 | E77: -3.25 | F77: =E77/12 -> -0.2708333333 | G77: =VLOOKUP($B77,$A$11:$I1065,COLUMN(),FALSE)+C77 -> 20 | H77: =IF(RIGHT(A77,1)="0",D77,VLOOKUP($B77,$A$11:$I1065,COLUMN(),FALSE)+D77) -> 6 | I77: =IF(RIGHT(A77,1)="0",K77,VLOOKUP($B77,$A$11:$I1065,COLUMN(),FALSE)+F77) -> -3.291666667 | K77: =VLOOKUP(G77,Patio_Profile!$D$6:$G$17,3,FALSE) -> -2.541666667
A78: 8-3 | B78: 8-2 | C78: 0 | D78: 2 | E78: 0 | F78: 0 | G78: =VLOOKUP($B78,$A$11:$I1066,COLUMN(),FALSE)+C78 -> 20 | H78: =IF(RIGHT(A78,1)="0",D78,VLOOKUP($B78,$A$11:$I1066,COLUMN(),FALSE)+D78) -> 8 | I78: =IF(RIGHT(A78,1)="0",K78,VLOOKUP($B78,$A$11:$I1066,COLUMN(),FALSE)+F78) -> -3.291666667 | K78: =VLOOKUP(G78,Patio_Profile!$D$6:$G$17,3,FALSE) -> -2.541666667
A79: 8-4 | B79: 8-3 | C79: 0 | D79: 2 | E79: 1.75 | F79: 0.1458333333 | G79: =VLOOKUP($B79,$A$11:$I1067,COLUMN(),FALSE)+C79 -> 20 | H79: =IF(RIGHT(A79,1)="0",D79,VLOOKUP($B79,$A$11:$I1067,COLUMN(),FALSE)+D79) -> 10 | I79: =IF(RIGHT(A79,1)="0",K79,VLOOKUP($B79,$A$11:$I1067,COLUMN(),FALSE)+F79) -> -3.145833333 | K79: =VLOOKUP(G79,Patio_Profile!$D$6:$G$17,3,FALSE) -> -2.541666667
A80: 8-5 | B80: 8-4 | C80: 0 | D80: 2 | E80: 4.5 | F80: 0.375 | G80: =VLOOKUP($B80,$A$11:$I1068,COLUMN(),FALSE)+C80 -> 20 | H80: =IF(RIGHT(A80,1)="0",D80,VLOOKUP($B80,$A$11:$I1068,COLUMN(),FALSE)+D80) -> 12 | I80: =IF(RIGHT(A80,1)="0",K80,VLOOKUP($B80,$A$11:$I1068,COLUMN(),FALSE)+F80) -> -2.770833333 | K80: =VLOOKUP(G80,Patio_Profile!$D$6:$G$17,3,FALSE) -> -2.541666667
A81: 8-6 | B81: 8-5 | C81: 0 | D81: 2 | E81: 5 | F81: 0.4166666667 | G81: =VLOOKUP($B81,$A$11:$I1069,COLUMN(),FALSE)+C81 -> 20 | H81: =IF(RIGHT(A81,1)="0",D81,VLOOKUP($B81,$A$11:$I1069,COLUMN(),FALSE)+D81) -> 14 | I81: =IF(RIGHT(A81,1)="0",K81,VLOOKUP($B81,$A$11:$I1069,COLUMN(),FALSE)+F81) -> -2.354166667 | K81: =VLOOKUP(G81,Patio_Profile!$D$6:$G$17,3,FALSE) -> -2.541666667
A82: 8-7 | B82: 8-6 | C82: 0 | D82: 2 | E82: 4.25 | F82: 0.3541666667 | G82: =VLOOKUP($B82,$A$11:$I1070,COLUMN(),FALSE)+C82 -> 20 | H82: =IF(RIGHT(A82,1)="0",D82,VLOOKUP($B82,$A$11:$I1070,COLUMN(),FALSE)+D82) -> 16 | I82: =IF(RIGHT(A82,1)="0",K82,VLOOKUP($B82,$A$11:$I1070,COLUMN(),FALSE)+F82) -> -2 | K82: =VLOOKUP(G82,Patio_Profile!$D$6:$G$17,3,FALSE) -> -2.541666667
A83: 9-0 | B83: 8-7 | C83: 2.5 | D83: 2 | E83: 0 | F83: 0 | G83: =VLOOKUP($B83,$A$11:$I1071,COLUMN(),FALSE)+C83 -> 22.5 | H83: =IF(RIGHT(A83,1)="0",D83,VLOOKUP($B83,$A$11:$I1071,COLUMN(),FALSE)+D83) -> 2 | I83: =IF(RIGHT(A83,1)="0",K83,VLOOKUP($B83,$A$11:$I1071,COLUMN(),FALSE)+F83) -> -2.854166667 | K83: =VLOOKUP(G83,Patio_Profile!$D$6:$G$17,3,FALSE) -> -2.854166667
A84: 9-1 | B84: 9-0 | C84: 0 | D84: 2 | E84: -3.75 | F84: -0.3125 | G84: =VLOOKUP($B84,$A$11:$I1072,COLUMN(),FALSE)+C84 -> 22.5 | H84: =IF(RIGHT(A84,1)="0",D84,VLOOKUP($B84,$A$11:$I1072,COLUMN(),FALSE)+D84) -> 4 | I84: =IF(RIGHT(A84,1)="0",K84,VLOOKUP($B84,$A$11:$I1072,COLUMN(),FALSE)+F84) -> -3.166666667 | K84: =VLOOKUP(G84,Patio_Profile!$D$6:$G$17,3,FALSE) -> -2.854166667
A85: 9-2 | B85: 9-1 | C85: 0 | D85: 2 | E85: -2.5 | F85: -0.2083333333 | G85: =VLOOKUP($B85,$A$11:$I1073,COLUMN(),FALSE)+C85 -> 22.5 | H85: =IF(RIGHT(A85,1)="0",D85,VLOOKUP($B85,$A$11:$I1073,COLUMN(),FALSE)+D85) -> 6 | I85: =IF(RIGHT(A85,1)="0",K85,VLOOKUP($B85,$A$11:$I1073,COLUMN(),FALSE)+F85) -> -3.375 | K85: =VLOOKUP(G85,Patio_Profile!$D$6:$G$17,3,FALSE) -> -2.854166667
A86: 9-3 | B86: 9-2 | C86: 0 | D86: 2 | E86: 0 | F86: 0 | G86: =VLOOKUP($B86,$A$11:$I1074,COLUMN(),FALSE)+C86 -> 22.5 | H86: =IF(RIGHT(A86,1)="0",D86,VLOOKUP($B86,$A$11:$I1074,COLUMN(),FALSE)+D86) -> 8 | I86: =IF(RIGHT(A86,1)="0",K86,VLOOKUP($B86,$A$11:$I1074,COLUMN(),FALSE)+F86) -> -3.375 | K86: =VLOOKUP(G86,Patio_Profile!$D$6:$G$17,3,FALSE) -> -2.854166667
A87: 9-4 | B87: 9-3 | C87: 0 | D87: 2 | E87: 1.75 | F87: 0.1458333333 | G87: =VLOOKUP($B87,$A$11:$I1075,COLUMN(),FALSE)+C87 -> 22.5 | H87: =IF(RIGHT(A87,1)="0",D87,VLOOKUP($B87,$A$11:$I1075,COLUMN(),FALSE)+D87) -> 10 | I87: =IF(RIGHT(A87,1)="0",K87,VLOOKUP($B87,$A$11:$I1075,COLUMN(),FALSE)+F87) -> -3.229166667 | K87: =VLOOKUP(G87,Patio_Profile!$D$6:$G$17,3,FALSE) -> -2.854166667
A88: 9-5 | B88: 9-4 | C88: 0 | D88: 2 | E88: 4.5 | F88: 0.375 | G88: =VLOOKUP($B88,$A$11:$I1076,COLUMN(),FALSE)+C88 -> 22.5 | H88: =IF(RIGHT(A88,1)="0",D88,VLOOKUP($B88,$A$11:$I1076,COLUMN(),FALSE)+D88) -> 12 | I88: =IF(RIGHT(A88,1)="0",K88,VLOOKUP($B88,$A$11:$I1076,COLUMN(),FALSE)+F88) -> -2.854166667 | K88: =VLOOKUP(G88,Patio_Profile!$D$6:$G$17,3,FALSE) -> -2.854166667
A89: 9-6 | B89: 9-5 | C89: 0 | D89: 2 | E89: 5 | F89: 0.4166666667 | G89: =VLOOKUP($B89,$A$11:$I1077,COLUMN(),FALSE)+C89 -> 22.5 | H89: =IF(RIGHT(A89,1)="0",D89,VLOOKUP($B89,$A$11:$I1077,COLUMN(),FALSE)+D89) -> 14 | I89: =IF(RIGHT(A89,1)="0",K89,VLOOKUP($B89,$A$11:$I1077,COLUMN(),FALSE)+F89) -> -2.4375 | K89: =VLOOKUP(G89,Patio_Profile!$D$6:$G$17,3,FALSE) -> -2.854166667
A90: 9-7 | B90: 9-6 | C90: 0 | D90: 2 | E90: 5 | F90: 0.4166666667 | G90: =VLOOKUP($B90,$A$11:$I1078,COLUMN(),FALSE)+C90 -> 22.5 | H90: =IF(RIGHT(A90,1)="0",D90,VLOOKUP($B90,$A$11:$I1078,COLUMN(),FALSE)+D90) -> 16 | I90: =IF(RIGHT(A90,1)="0",K90,VLOOKUP($B90,$A$11:$I1078,COLUMN(),FALSE)+F90) -> -2.020833333 | K90: =VLOOKUP(G90,Patio_Profile!$D$6:$G$17,3,FALSE) -> -2.854166667

Sheet Patio_Profile
N2: 1 | O2: =N2/8 -> 0.125
N3: 2 | O3: =N3/8 -> 0.25
N4: 3 | O4: 0.375
A5: Point | B5: Distance (in) | C5: Vertical Offset (in) | D5: Total Distance (ft) | E5: Vertical Offset (ft) | F5: Elevation | G5: Slope to Next (%) | N5: 4 | O5: 0.5
A6: Patio_East | B6: 0 | C6: 0 | D6: 0 | E6: 0 | F6: =Sheet1!J4 -> 0 | G6: =(E7-E6)/(D7-D6) -> -0.03333333333 | N6: 5 | O6: 0.625
A7: A | B7: 30 | C7: -1 | D7: =D6+(B7/12) -> 2.5 | E7: =E6+(C7/12) -> -0.08333333333 | F7: =F6+E7 -> -0.08333333333 | G7: =(E8-E7)/(D8-D7) -> -0.04583333333 | N7: 6 | O7: 0.75
A8: B | B8: 30 | C8: -1.375 | D8: =D7+(B8/12) -> 5 | E8: =E7+(C8/12) -> -0.1979166667 | F8: =F7+E8 -> -0.28125 | G8: -0.075 | N8: 7 | O8: 0.875
A9: C | B9: 30 | C9: -2.25 | D9: 7.5 | E9: -0.3854166667 | F9: =F8+E9 -> -0.6666666667 | G9: -0.04583333333 | N9: 8 | O9: 1
A10: D | B10: 30 | C10: -1.375 | D10: 10 | E10: -0.5 | F10: -1.166666667 | G10: 0
A11: E | B11: 30 | C11: 0 | D11: 12.5 | E11: -0.5 | F11: -1.666666667 | G11: 0.125
A12: F | B12: 30 | C12: 3.75 | D12: 15 | E12: -0.1875 | F12: -1.854166667 | G12: -0.03333333333
A13: G | B13: 30 | C13: -1 | D13: 17.5 | E13: -0.2708333333 | F13: -2.125 | G13: -0.05833333333
A14: H | B14: 30 | C14: -1.75 | D14: 20 | E14: -0.4166666667 | F14: -2.541666667 | G14: 0.04166666667
A15: I | B15: 30 | C15: 1.25 | D15: 22.5 | E15: -0.3125 | F15: -2.854166667 | G15: -0.0625
A16: J | B16: 30 | C16: -1.875 | D16: 25 | E16: -0.46875 | F16: -3.322916667 | G16: 0.05833333333
A17: K | B17: 30 | C17: 1.75 | D17: 27.5 | E17: -0.3229166667 | F17: -3.645833333 | G17: -0.01174242424

Sheet Trench
A3: Trench Points
A5: X | B5: Y
B6: Feet | C6: Inches | D6: Num | E6: Denom | F6: Dec. Feet
A7: 0 | B7: 4 | C7: 10 | F7: =(((IF(E7=0,0,D7/E7)+C7)/12)+B7) -> 4.833333333
A8: 2.5 | B8: 4 | C8: 10 | D8: 1 | E8: 2 | F8: =(((IF(E8=0,0,D8/E8)+C8)/12)+B8) -> 4.875
A9: 5 | B9: 5 | C9: 1 | F9: 5.083333333
A10: 7.5 | B10: 5 | D10: 1 | E10: 2 | F10: 5.041666667
A11: 10 | B11: 5 | F11: 5
A12: 12.5 | B12: 5 | F12: 5
A13: 15 | B13: 5 | D13: 1 | E13: 2 | F13: 5.041666667
A14: 17.5 | B14: 4 | C14: 11 | F14: 4.916666667
A15: 20 | B15: 4 | C15: 11 | F15: 4.916666667
A16: 22.5 | B16: 4 | C16: 10 | F16: 4.833333333
